Cogmind - Beta 13 @@@ ROGUE MODE // 2024.06.18 @ 16:38:17 Player: ILikeVoltron Result: Destroyed by Y-64 Sentinel with Wave Gun Performance ------------- Evolutions (3) 1500 Regions Visited (5) 1000 Robots Destroyed (33) 165 Value Destroyed (900) 900 Prototype IDs (2) 40 Alien Tech Used (0) 0 Bonus (0) 0 TOTAL SCORE: 3605 Bonus ------- None Cogmind --------- Core Integrity 0/700 Matter 300/300 Energy 100/100 System Corruption 3% Temperature Cool (9) Movement Core (50) Location -7/Lower Caves Parts ------- > --- POWER (2) -------- (None) > --- PROPULSION (4) --- (None) > --- UTILITY (5) ------ (None) > --- WEAPON (2) ------- (None) > --- INVENTORY (5) ---- Subdweller Power Source Subdweller Power Source Disposable Heat Sink Subdweller Optics Scrap Shield Fragment (21) Peak State ------------ > --- POWER ------------ Light Nuclear Core > --- PROPULSION ------- Wheel Subdweller Monowheel Subdweller Monowheel > --- UTILITY ---------- Cryofiber Web Improved Heat Sink Humpback Subdweller Optics > --- WEAPON ----------- Improved Assault Rifle Axe > --- INVENTORY -------- Ion Engine Subdweller Power Source Subdweller Power Source Subdweller Power Source Subdweller Power Source Subdweller Power Source Hover Unit Cryofiber Web Disposable Heat Sink Disposable Heat Sink Disposable Heat Sink Small Storage Unit High-capacity Storage Unit High-capacity Battery Medium Matter Pod Structural Scanner Subdweller Optics Subdweller Optics Subdweller Optics Utility Shielding Small Laser Particle Gun Subdweller Laser Pulse Rifle EM Pulse Cannon Ion Cannon Assault Rifle Assault Rifle Mining Claw Scythe Scrap Shield Fragment Scrap Shield Fragment Scrap Shield Fragment Scrap Shield Fragment [Rating: 30] Favorites ----------- Power Light Nuclear Core Engine Ion Engine Power Core Light Nuclear Core Propulsion Light Treads Treads Light Treads Leg Aluminum Leg Wheel Subdweller Monowheel Hover Unit Hover Unit Utility Humpback Device Terrain Scanner Storage Humpback Processor Targeting Computer Protection Utility Shielding Weapon Improved Assault Rifle Energy Gun Improved EM Shotgun Ballistic Gun Improved Assault Rifle Special Weapon Mining Laser Slashing Weapon Mining Claw Build | -11 -10 -10 -8 -7 -7 ------- Run | Yrd Mat Sub Mat Fac Low Slots Evolved 6 | . . . 4 2 . Power 1 | . . . . 1 . Propulsion 2 | . . . 1 1 . Utility 3 | . . . 3 . . Weapon . | . . . . . . Parts Attached 47 | 1 10 7 24 2 3 Power 5 | . 2 1 1 1 . Engine 3 | . 1 1 . 1 . Core 2 | . 1 . 1 . . Reactor . | . . . . . . Propulsion 12 | . 1 2 8 1 . Treads 3 | . . . 3 . . Leg 1 | . 1 . . . . Wheel 7 | . . 2 5 . . Hover 1 | . . . . 1 . Flight . | . . . . . . Utility 13 | 1 1 2 8 . 1 Device 8 | 1 1 1 5 . . Storage 1 | . . 1 . . . Processor 3 | . . . 2 . 1 Hackware . | . . . . . . Protection 1 | . . . 1 . . Artifact . | . . . . . . Weapon 17 | . 6 2 7 . 2 Energy Gun 5 | . 2 . 2 . 1 Energy Cannon . | . . . . . . Ballistic Gun 5 | . 1 1 3 . . Ballistic Cannon . | . . . . . . Launcher . | . . . . . . Special Weapon 1 | . 1 . . . . Impact Weapon . | . . . . . . Slashing Weapon 6 | . 2 1 2 . 1 Piercing Weapon . | . . . . . . Special Melee Weapon . | . . . . . . Unidentified Prototypes 2 | . . . 1 . 1 Parts Lost 22 | . . 4 6 . 12 Power 3 | . . 1 . . 2 Propulsion 10 | . . 2 4 . 4 Utility 6 | . . 1 1 . 4 Weapon 3 | . . . 1 . 2 Highest Loss Streak 9 | . . 2 5 . 9 To Critical Strikes . | . . . . . . Average Slot Usage (%) 87 | . 100 89 85 90 84 Engine 7 | . 9 8 3 6 6 Core 5 | . 4 5 5 7 6 Treads 11 | . . . 12 23 18 Leg 5 | . 28 6 . . . Wheel 6 | . . 21 12 . . Hover 2 | . . . . 6 4 Device 9 | . 14 5 16 7 6 Storage 9 | . 14 14 9 7 6 Processor 8 | . . . 7 15 14 Energy Gun 2 | . 8 . 1 . 1 Ballistic Gun 12 | . 10 23 11 15 9 Slashing Weapon 3 | . 3 4 4 . 2 Naked Turns 18 | . . . . . 18 Heaviest Build 217 | 12 15 209 215 217 217 Greatest Support 60 | 20 20 40 60 60 60 Greatest Overweight (x) 69 | . . 10 10 3 69 Average Overweight (x) 2 | . . 4 3 3 4 Largest Inventory Capacity 35 | 8 8 35 35 35 35 Average Capacity 28 | 8 8 24 35 35 34 Most Carried 35 | 8 8 29 35 35 35 Average Carried 27 | 6 7 18 32 33 34 Final Capacity 35 | 8 8 35 35 35 5 Final Carried 35 | 8 8 29 35 34 5 Class Distribution -------------------- 77% | Hauler-Mutant 17% | Mutant 5% | Scavenger-Mutant Dominant Class ---------------- Mutant | -10/Materials Hauler-Mutant | -10/Subcaves Hauler-Mutant | -8/Materials Hauler-Mutant | -7/Factory Hauler-Mutant | -7/Lower Caves Resources | -11 -10 -10 -8 -7 -7 ----------- Run | Yrd Mat Sub Mat Fac Low Matter Collected 1273 | 237 210 293 311 144 78 Remotely . | . . . . . . Salvage Created 1394 | 112 177 211 493 341 60 Parts 87 | 6 17 18 29 13 4 Haulers Intercepted 3 | . . . 2 1 . Recyclers Shooed . | . . . . . . Parts Field Recycled . | . . . . . . Retrieved Matter . | . . . . . . Parts Self-Destructed 20 | . . 8 . . 12 Prevented . | . . . . . . Kills | -11 -10 -10 -8 -7 -7 ------- Run | Yrd Mat Sub Mat Fac Low Combat Hostiles Destroyed 21 | . 5 5 6 4 1 Melee 4 | . . . 4 . . Guns 17 | . 5 5 2 4 1 Classes Destroyed 11 | 2 4 1 4 . . Worker 2 | . 1 . . 1 . Builder 3 | . 1 . 2 . . Tunneler 2 | 2 . . . . . Hauler 3 | . . . 2 1 . Recycler 1 | 1 . . . . . Watcher 1 | . . . 1 . . Swarmer 3 | . 3 . . . . Grunt 10 | . 2 . 3 4 1 Sentry 2 | . . . 2 . . Hunter 1 | . . . 1 . . Subdweller 5 | . . 5 . . . Best Kill Streak 6 | 2 4 1 6 4 1 Combat Bots Only 4 | . 3 1 4 1 1 Max Kills in Single Turn 1 | 1 1 1 1 1 1 Gunslinging . | . . . . . . Exploded . | . . . . . . Melee 1 | . . . 1 . . Uniques/NPCs Destroyed . | . . . . . . Combat | -11 -10 -10 -8 -7 -7 -------- Run | Yrd Mat Sub Mat Fac Low Hostile Shots Fired 292 | . 22 40 96 32 102 Missed 93 | . 7 13 33 4 36 Damage Taken 3272 | . 161 548 935 434 1194 Core 1086 | . 17 182 174 17 696 Absorbed by Shields . | . . . . . . Core Remaining (%) 62 | 100 . 20 68 . . Volleys Fired 113 | 9 20 31 22 26 5 Largest 2 | 2 2 2 2 2 2 Hottest 100 | 60 100 40 65 46 68 Shots Fired 212 | 18 33 61 38 52 10 Gun 205 | 18 26 61 38 52 10 Cannon . | . . . . . . Launcher . | . . . . . . Special 7 | . 7 . . . . Kinetic 172 | 9 13 61 32 52 5 Thermal 35 | 9 20 . 6 . . Explosive . | . . . . . . Electromagnetic 5 | . . . . . 5 Robot Hit Streak 18 | 5 9 13 15 18 11 Robot Miss Streak 3 | 3 2 3 3 1 1 Penetration Max . | . . . . . . Secondary Targets . | . . . . . . Shots Hit Robots 172 | 10 17 45 47 45 8 Core Hits 58 | 4 10 11 12 14 7 Critical Kills 1 | . . . . 1 . Critical Parts Destroyed . | . . . . . . Critical Strikes 4 | . . . 3 1 . Burn 2 | . . . 2 . . Destroy 1 | . . . . 1 . Sever 1 | . . . 1 . . Melee Attacks 57 | . 8 4 26 . 19 Impact . | . . . . . . Slashing 57 | . 8 4 26 . 19 Piercing . | . . . . . . Sneak Attacks 5 | . 2 . 3 . . Combat Hostiles . | . . . . . . Follow-up Attacks . | . . . . . . Damage Inflicted 2932 | 118 269 498 1242 672 133 Guns 2053 | 118 174 498 458 672 133 Cannons . | . . . . . . Explosions . | . . . . . . Melee 879 | . 95 . 784 . . Ramming . | . . . . . . Kinetic 1721 | 85 68 498 358 672 40 Thermal 239 | 33 106 . 100 . . Explosive . | . . . . . . Electromagnetic 93 | . . . . . 93 Impact . | . . . . . . Slashing 879 | . 95 . 784 . . Piercing . | . . . . . . Highest Corruption 3 | . . . . . 3 Average Corruption 3 | . . . . . 3 Corruption Purged . | . . . . . . Corruption Blocked . | . . . . . . Effects 9 | . . . . . 9 Message Errors 3 | . . . . . 3 Matter Fused 2 | . . . . . 2 Heat Flow Errors 1 | . . . . . 1 Energy Discharges 2 | . . . . . 2 Data Loss (minor) 1 | . . . . . 1 Overload Shots . | . . . . . . Overflow Damage 115 | . 9 . 106 . . Projectiles . | . . . . . . Explosions . | . . . . . . Melee 115 | . 9 . 106 . . Knockbacks . | . . . . . . Impact . | . . . . . . Kinetic . | . . . . . . Secondary . | . . . . . . Self-Inflicted Damage . | . . . . . . Shots . | . . . . . . Rammed . | . . . . . . Targets Rammed . | . . . . . . Kicked . | . . . . . . Crushed . | . . . . . . Highest Temperature 224 | 20 48 . 18 20 224 Average Temperature 24 | 20 19 . 13 5 59 Received Heat Transfer 1143 | . 57 78 414 288 306 Siege Activations . | . . . . . . Robots Corrupted . | . . . . . . Combat Hostiles . | . . . . . . Parts Fried . | . . . . . . Impact Corruptions . | . . . . . . Robots Melted . | . . . . . . Combat Hostiles . | . . . . . . Parts Melted . | . . . . . . Heat Transferred 695 | 75 250 . 370 . . Parts Sabotaged . | . . . . . . Parts Stolen . | . . . . . . Parts Stripped . | . . . . . . Power Chain Reactions . | . . . . . . Alert | -11 -10 -10 -8 -7 -7 ------- Run | Yrd Mat Sub Mat Fac Low Peak Influence 167 | 15 165 . 162 167 . Initial 30 | . 9 . . 30 . Average 52 | 7 46 . 46 94 . Maximum Alert Level . | . . . . . . Low Security (%) 100 | 100 100 . 100 100 . Level 1 . | . . . . . . Level 2 . | . . . . . . Level 3 . | . . . . . . Level 4 . | . . . . . . Level 5 . | . . . . . . High Security . | . . . . . . Max Security . | . . . . . . Squads Dispatched 2 | . . . 1 1 . Investigation . | . . . . . . Extermination . | . . . . . . Reinforcement 2 | . . . 1 1 . Assault . | . . . . . . Garrison . | . . . . . . Intercept . | . . . . . . Searches Triggered . | . . . . . . Construction Impeded . | . . . . . . Haulers Reinforced 1 | . . . . 1 . Active Scanning Responses . | . . . . . . Cargo Convoy Interrupts . | . . . . . . Stealth | -11 -10 -10 -8 -7 -7 --------- Run | Yrd Mat Sub Mat Fac Low Distress Signals . | . . . . . . Communications Jammed . | . . . . . . Distress Signals . | . . . . . . Times Spotted 40 | . 8 5 11 7 9 Peak Tracking Total 7 | . 3 2 5 2 7 Tactical Retreats 6 | . 1 . 3 2 . Traps | -11 -10 -10 -8 -7 -7 ------- Run | Yrd Mat Sub Mat Fac Low Traps Triggered . | . . . . . . Indirectly . | . . . . . . Trap Hack Attempts . | . . . . . . Triggered . | . . . . . . Disarmed . | . . . . . . Reprogrammed . | . . . . . . Reused . | . . . . . . Traps Extracted . | . . . . . . Installed . | . . . . . . Triggered . | . . . . . . Machines | -11 -10 -10 -8 -7 -7 ---------- Run | Yrd Mat Sub Mat Fac Low Machines Disabled . | . . . . . . Max in Single Turn . | . . . . . . Machines Repaired . | . . . . . . Machines Dismantled . | . . . . . . Machines Sabotaged . | . . . . . . Overloaded Fab Kills . | . . . . . . Hacking | -11 -10 -10 -8 -7 -7 --------- Run | Yrd Mat Sub Mat Fac Low Machines Accessed 4 | . 4 . . . . Terminals 4 | . 4 . . . . Fabricators . | . . . . . . Repair Stations . | . . . . . . Recycling Units . | . . . . . . Scanalyzers . | . . . . . . Garrison Access . | . . . . . . Total Hacks 7 | . 7 . . . . Successful 4 | . 4 . . . . Failed 3 | . 3 . . . . Catastrophic . | . . . . . . Database Lockouts . | . . . . . . Manual 5 | . 5 . . . . Terminals 7 | . 7 . . . . Fabricators . | . . . . . . Repair Stations . | . . . . . . Recycling Units . | . . . . . . Scanalyzers . | . . . . . . Garrison Access . | . . . . . . Terminal Hacks 2 | . 2 . . . . Recycling Unit Index 1 | . 1 . . . . Locate Traps 1 | . 1 . . . . Fabricator Hacks . | . . . . . . Repair Station Hacks . | . . . . . . Recycling Unit Hacks . | . . . . . . Scanalyzer . | . . . . . . Garrison Access Hacks . | . . . . . . Unauthorized Hacks 2 | . 2 . . . . Terminals 2 | . 2 . . . . Botnet 2 | . 2 . . . . Fabricators . | . . . . . . Repair Stations . | . . . . . . Recycling Units . | . . . . . . Scanalyzers . | . . . . . . Garrison Access . | . . . . . . Data Cores Recovered . | . . . . . . Used . | . . . . . . Hacking Detections 3 | . 3 . . . . Full Trace Events . | . . . . . . Feedback Events . | . . . . . . Feedback Blocked . | . . . . . . Robot Schematics Acquired . | . . . . . . Robots Built . | . . . . . . Authchips . | . . . . . . Time . | . . . . . . Total Robot Build Rating . | . . . . . . Part Schematics Acquired . | . . . . . . Parts Built . | . . . . . . Authchips . | . . . . . . Time . | . . . . . . Total Part Build Rating . | . . . . . . Parts Repaired . | . . . . . . Time . | . . . . . . Parts Recycled . | . . . . . . Recycled Matter . | . . . . . . Retrieved Matter . | . . . . . . Retrieved Components . | . . . . . . Parts Scanalyzed . | . . . . . . Part Schematics Acquired . | . . . . . . Parts Damaged . | . . . . . . Bothacking | -11 -10 -10 -8 -7 -7 ------------ Run | Yrd Mat Sub Mat Fac Low Used RIF Installer . | . . . . . . Robots Hacked . | . . . . . . Non-combat . | . . . . . . Combat . | . . . . . . Robot Hacks Applied . | . . . . . . Relay Couplers Released . | . . . . . . Fabnet Peak Effective % . | . . . . . . Robots Rewired . | . . . . . . Allies Hacked . | . . . . . . Hacks Repelled . | . . . . . . Allies | -11 -10 -10 -8 -7 -7 -------- Run | Yrd Mat Sub Mat Fac Low Total Allies . | . . . . . . Largest Group . | . . . . . . Highest-Rated Group . | . . . . . . Highest-Rated Ally . | . . . . . . Total Orders . | . . . . . . Ally Attacks . | . . . . . . Total Damage . | . . . . . . Kills . | . . . . . . Allies Corrupted . | . . . . . . Allies Melted . | . . . . . . Intel | -11 -10 -10 -8 -7 -7 ------- Run | Yrd Mat Sub Mat Fac Low Robot Analysis Total . | . . . . . . Derelict Logs Recovered 1 | . . . . . 1 Drone Launches . | . . . . . . Drone Recoveries . | . . . . . . Exploration | -11 -10 -10 -8 -7 -7 ------------- Run | Yrd Mat Sub Mat Fac Low Turns Passed 3763 | 67 520 669 605 234 1668 Spaces Moved 1259 | 30 335 339 191 38 326 Core 1 | . . . . . 1 Treads 419 | . . . 56 38 325 Legs 439 | 30 335 74 . . . Wheels 400 | . . 265 135 . . Hover . | . . . . . . Flight . | . . . . . . Fastest Speed 110 | 120 120 110 144 400 400 Average Speed 248 | 120 120 154 223 400 488 Slowest Speed 3500 | 120 120 210 560 400 3500 Overloaded Moves . | . . . . . . Propulsion Burnouts . | . . . . . . Robots Hopped . | . . . . . . Cave-ins Triggered . | . . . . . . Exploration Rate (%) 20 | 3 52 12 15 2 36 Regions Visited 5 Branch Regions 2 Pre-discovered Areas 1 | . . . . . 1 Known Exits Taken . | . . . . . . Unknown Exits Taken 5 | 1 1 1 1 1 . Scrap Searched 4 | . . 3 . . 1 Spaces Dug 12 | . 9 . 3 . . Terrain Destroyed 12 | . 9 . 3 . . Melee 5 | . 2 . 3 . . Projectile 7 | . 7 . . . . AOE . | . . . . . . Terrain Rammed . | . . . . . . Walls Destroyed . | . . . . . . Machines Disabled . | . . . . . . Actions | -11 -10 -10 -8 -7 -7 --------- Run | Yrd Mat Sub Mat Fac Low Total 1564 | 43 395 416 285 71 354 Wait 12 | . 5 5 . 2 . Move 1254 | 29 334 338 190 37 326 Hop . | . . . . . . Pick Up 50 | 3 7 27 11 1 1 Fast Attach 16 | 1 . 3 12 . . Attach 10 | . . 2 6 2 . Detach 3 | . . . 3 . . Swap 21 | . 10 2 6 . 3 Drop 24 | 1 11 3 9 . . Fire 113 | 9 20 31 22 26 5 Melee 57 | . 8 4 26 . 19 Ram . | . . . . . . Kick . | . . . . . . Crush . | . . . . . . Escape Stasis . | . . . . . . Rewire 4 | . . 1 . 3 . Trap . | . . . . . . Miscellaneous . | . . . . . . Route ------- -11/Scrapyard -10/Materials (discovered 2 exits: [*Min] / [*Sub]) -10/Subcaves -8/Materials -7/Factory -7/Lower Caves History --------- Turn | Location | Event 23 | -11/Scrapyard | Discovered new exit (range 3) 68 | -11/Scrapyard | Entered Materials 305 | -10/Materials | Build established: Mutant 551 | -10/Materials | Discovered new exit (range 5) 572 | -10/Materials | Discovered new exit (range 10) 588 | -10/Materials | Entered Subcaves 616 | -10/Subcaves | Shifting Twisted Machinery released Sub. Monowheel 744 | -10/Subcaves | Core integrity fell below 50% 784 | -10/Subcaves | Discovered new exit (range 5) 817 | -10/Subcaves | Disturbed a concealed Subdweller 1005 | -10/Subcaves | Shifting Twisted Machinery released Scrap Shield 1133 | -10/Subcaves | Build established: Hauler-Mutant 1257 | -10/Subcaves | Entered Materials 1257 | -8/Materials | Evolved 4 slots: Propulsion x1, Utility x3 1520 | -8/Materials | Lost 5 parts (3n1u1w) 1778 | -8/Materials | Discovered new exit (range 5) 1862 | -8/Materials | Entered Factory 1862 | -7/Factory | Evolved 2 slots: Power x1, Propulsion x1 2038 | -7/Factory | Discovered new exit (range 8) 2096 | -7/Factory | Entered Lower Caves 2399 | -7/Lower Caves | Learned location of Zion (-6) 3314 | -7/Lower Caves | Lost 3 parts (3n) 3717 | -7/Lower Caves | Attracted the attention of an 0b10 base 3748 | -7/Lower Caves | Core integrity fell below 50% 3757 | -7/Lower Caves | Core integrity fell below 20% 3764 | -7/Lower Caves | Destroyed by Y-64 Sentinel with Wave Gun Last Messages --------------- 03732_ U3C/HMIC7Z:CM1W&RXV|EOU# 03744_ Ion Engine destroyed. 03744_ Penetrated by Slug. 03746_ Targeting Computer destroyed. 03747_ Penetrated by Slug. 03750_ Slug penetrates S-27 Virus. 03750_ S-27 Virus destroyed. 03752_ Penetrated by Slug. 03755_ VTOL Module fries itself beyond repair. 03755_ S-27 Virus destroyed. 03755_ Slug penetrates G-47 Trooper. 03758_ G-47 Trooper destroyed. 03758_ Penetrated by Slug. 03763_ Lgt. Nuclear Core fries itself beyond repair. 03764_ Aluminum Leg fries itself beyond repair. 03764_ Lgt. Nuclear Core fries itself beyond repair. Map ----- +----------------------------------------------------+ | | | | | | | | | ?????????????????????????????????????????????????? | | ?????????????????????????????????????????????????? | | ?????????????????????????????????????????????????? | | ?????????????????????????????????????????????????? | | ??????????????????????????????????????????#???#??? | | ???????????????????????????????????????????#?#?#?# | | ?????????????????????????????#??????????#??#??###? | | ?????????????????????????#?##??#?########?###?###? | | ???????????????????????#?##??##?##??############## | | ????????????????????????######?#???############### | | ??????????????????????#?#######?##?############### | | ????????????????????#?####?#?#?################### | | ???????????????????##?#?########################## | | ???????????????????#??###?######################## | | ????????????????###?#?############################ | | ?????????????????#?##### ####### ############ # | | ?????????????????#### ##### ########## | | ??????????????#?#?## [ %*####### ######### | | ?????????????????? ## /!!####### ######## ## | | ????????????????? ####!&[*[###### ####### ### | | ???????????????# # =!!g[&gY!% ###### #### | | ???????????????#??# ![][@!![! #### ##### | | ???????????????? # ##+###%#### ### ###### | | ??????????????????? #" [ # # ## | | ??????????????? ?? ??" "[[# # | | ?????????????????? ? #" """# # | | ?????????????????? ??# # #### # | | ??????????????#????? # # #### | | ???????????????????? #"" # #### | | ???????????????#???? #"T # ##### # | | ?????????????????? ??#"" # ##### # | | ???????????????????? ?"" """""# #### # ## | | ???????????????????? ?###+###### #### # | | ??????????????????? ???? ? ### # ?# # | | ???????????????????????? ??? ###? ? | | ????????????????????????????? ##### # ? | | ?????????????????????????????## ?##### ? # | | ??????????????????????????????? ### ### # | | ?????????????????????????????????? ???# ??#??? ? | | ?????????????????????????????????????????????? ? | | ?????????????????????????????????????????????????? | | ?????????????????????????????????????????????????? | | ?????????????????????????????????????????????????? | | ?????????????????????????????????????????????????? | | ?????????????????????????????????????????????????? | | ?????????????????????????????????????????????????? | +----------------------------------------------------+ Best States ------------- Heat Dissipation 45 Energy Generation 19 Energy Capacity 310 Matter Stores 300 Matter Capacity 300 Sight Range 21 Terrain Scan Range 16 Terrain Scan Density 210 Base Temperature (-) 100 Utility Shielding 33 Evasion (%) 55 Targeting Accuracy 5 Recoil Reduction 3 Item Schematics ----------------- None Robot Schematics ------------------ None Fabricated ------------ Nothing Alien Tech Used ----------------- None Achievements -------------- None Challenges ------------ None Game ------ Seed SiegeFlightPropulsion Manual? 0 Play Time 00:29:17 Cumulative 131.0 hours Start 2024.06.18 @ 15:55:24 End 2024.06.18 @ 16:38:17 Sessions 3 Manual Loads 0 Difficulty Rogue Special Mode None Game No. 208 Rogue 204 Adventurer 0 Explorer 4 Win Type - Total 0 Types 0/0/0/0/0/0/0/0/0 Lore% 26 Gallery% 46 Achievement% 34 Wizard Run 0 Options --------- Layout 2 ASCII 0 Keyboard 1 Movement Arrows Keybinds 0 Fullscreen 1 Font 32/SmallcapsGlow Map View 130x44 Zoom Use 0% Tactical HUD 1 Map Filters NONE Filters NONE Steam 1 RUN: e4aca99f-ce6f-4201-be93-3fb329fb1ad0